fUST/lending_fUST_20250926
["ID","MTS","AMOUNT","RATE_DAILY","PERIOD"]
[387803150,1758882649324,-484.14,0.00038904,30]
[387803152,1758882649333,-480.0,0.00038904,30]
[387803154,1758882649343,-480.0,0.00038904,30]
[387803156,1758882649352,-1487.18,0.00038904,30]
[387803158,1758882649361,-480.0,0.00038904,30]
[387803168,1758882649370,-480.0,0.00038904,30]
[387803170,1758882649456,-480.0,0.00038904,30]
[387803172,1758882649465,-480.0,0.00038904,30]
[387803174,1758882649475,-480.0,0.00038904,30]
[387803176,1758882649484,-1013.98,0.00038904,30]
[387803178,1758882649493,-480.0,0.00038904,30]
[387803180,1758882649502,-699.15,0.00038904,30]
[387803182,1758882649511,-480.0,0.00038904,30]
[387803184,1758882649520,-792.69,0.00038904,30]
[387803186,1758882649529,-720.52,0.00038904,30]
[387803188,1758882649538,-480.0,0.00038904,30]
[387803190,1758882649547,-480.0,0.00038904,30]
[387803192,1758882649557,-1220.9,0.00038904,30]
[387803194,1758882649567,-887.25,0.00038904,30]
[387803196,1758882649576,-480.0,0.00038904,30]
[387803198,1758882649585,-480.0,0.00038904,30]
[387803200,1758882649594,-480.0,0.00038904,30]
[387803202,1758882649603,-480.0,0.00038904,30]
[387803204,1758882649613,-480.0,0.00038904,30]
[387803206,1758882649622,-564.2111252,0.00038904,30]
[387803208,1758882649632,-730.73,0.00038904,30]
[387803210,1758882649642,-554.17,0.00038904,30]
[387803212,1758882649651,-480.0,0.00038904,30]
[387803214,1758882649661,-746.91,0.00038904,30]
[387803216,1758882649670,-533.29,0.00038904,30]
[387803218,1758882649679,-480.0,0.00038904,30]
[387803220,1758882649689,-480.0,0.00038904,30]
[387803222,1758882649698,-480.0,0.00038904,30]
[387803223,1758882649707,-707.94,0.00038904,30]
[387803226,1758882649716,-480.0,0.00038904,30]
[387803228,1758882649726,-480.0,0.00038904,30]
[387803230,1758882649736,-703.4,0.00038904,30]
[387803231,1758882649745,-950.84,0.00038904,30]
[387803233,1758882649755,-480.0,0.00038904,30]
[387803235,1758882649763,-480.0,0.00038904,30]
[387803237,1758882649772,-480.0,0.00038904,30]
[387803239,1758882649781,-788.28,0.00038904,30]
[387803241,1758882649790,-480.0,0.00038904,30]
[387803243,1758882649799,-766.6,0.00038904,30]
[387803245,1758882649808,-1703.44,0.00038904,3]
[387803247,1758882649817,-480.0,0.00038904,30]
[387803249,1758882649826,-448.38771628,0.00038904,30]
[387803255,1758882649875,-31.61228372,0.00038904,30]
[387803257,1758882649885,-480.0,0.00038904,30]
[387803259,1758882649894,-755.24,0.00038904,30]
[387803261,1758882649903,-731.09,0.00038904,21]
[387803263,1758882649912,-480.0,0.00038904,30]
[387803265,1758882649921,-480.0,0.00038904,30]
[387803267,1758882649930,-480.0,0.00038904,30]
[387803269,1758882649939,-480.0,0.00038904,30]
[387803271,1758882649949,-480.0,0.00038904,30]
[387803273,1758882649958,-176.15578243,0.00038904,30]
[387804380,1758883045019,155.0,0.00028767,120]
[387804381,1758883064018,5000.0,0.00024,8]
[387804383,1758883086863,5000.0,0.00024,8]
[387804384,1758883110885,5000.0,0.00024,8]
[387804385,1758883133826,5000.0,0.00024,8]
[387804409,1758883357922,5000.0,0.00024,8]
[387804412,1758883381123,5000.0,0.00024,8]
[387804413,1758883405040,5000.0,0.00024,8]
[387804414,1758883428637,5000.0,0.00024,8]
[387804419,1758883451976,5000.0,0.00024,8]
[387804426,1758883477512,5000.0,0.00024,8]
[387804435,1758883500449,5000.0,0.00024,8]
[387804461,1758883722820,5000.0,0.00024,8]
[387804462,1758883735508,417.15472785,0.00026,60]
[387804509,1758883832217,-5000.0,0.00024953,8]
[387804511,1758883832226,-160.0,0.00026706,2]
[387804513,1758883832236,-233.71402077,0.00026795,2]
[387804515,1758883832245,-51.03144619,0.00026795,2]
[387804517,1758883832256,-108.96855381,0.00026795,2]
[387804519,1758883832266,-160.0,0.00026806,2]
[387804521,1758883832276,-606.69853492,0.00026847,2]
[387804597,1758883838264,-5000.0,0.00024953,8]
[387804598,1758883838274,-593.30146508,0.00026847,2]
[387804599,1758883838283,-1200.0,0.00026848,2]
[387804600,1758883838292,-300.0,0.00027996,2]
[387804601,1758883838301,-300.0,0.00027996,2]
[387804602,1758883838310,-300.0,0.00027996,2]
[387804603,1758883838319,-1697.08980242,0.00028,2]
[387804604,1758883838329,-1000.01,0.00028,2]
[387804605,1758883838338,-1000.01,0.0002814,2]
[387804606,1758883838347,-500.0,0.00028845,7]
[387804607,1758883838356,-1000.0,0.00029004,30]
[387804608,1758883838365,-1680.0,0.0002903,2]
[387804609,1758883838374,-1680.0,0.00029158,2]
[387804610,1758883838383,-666.0,0.00029271,2]
[387804611,1758883838392,-183.185783,0.00029332,60]
[387804612,1758883838402,-420.0,0.00030236,2]
[387804613,1758883838411,-420.0,0.00030236,2]
[387804614,1758883838421,-311.47637428,0.00030277,2]
[387804615,1758883838430,-365.36729041,0.00030277,2]
[387804616,1758883838440,-940.8,0.00030278,2]
[387804617,1758883838449,-4315.94321793,0.00030656,4]
[387804618,1758883838458,-400.0,0.00030667,60]
[387804619,1758883838467,-168.0,0.00030778,2]
[387804620,1758883838476,-168.0,0.00031027,2]
[387804621,1758883838486,-1151.0,0.0003139,3]
[387804622,1758883838495,-1151.0,0.00031667,3]
[387804623,1758883838504,-177.4108125,0.00032,120]
[387804624,1758883838513,-177.4108125,0.000323,120]
[387804625,1758883838522,-979.27939137,0.00032588,7]
[387804626,1758883838532,-177.4108125,0.000326,120]
[387804627,1758883838541,-587.0,0.00032655,2]
[387804628,1758883838550,-1287.720656,0.00032877,2]
[387804629,1758883838560,-605.34247346,0.00033094,2]
[387804630,1758883838569,-214.0493102,0.00033124,2]
[387804631,1758883838577,-165.029,0.000332,35]
[387804632,1758883838588,-165.66239392,0.000332,117]
[387804633,1758883838597,-302.3289642,0.00033314,2]
[387804634,1758883838606,-277.95,0.00035221,120]
[387804635,1758883838615,-255.99211836,0.00035499,7]
[387804636,1758883838624,-500.0,0.00035499,7]
[387804637,1758883838633,-500.0,0.00035499,7]
[387804638,1758883838643,-500.0,0.00035499,7]
[387804639,1758883838655,-629.23779333,0.00035499,7]
[387804640,1758883838665,-500.0,0.00035499,7]
[387804641,1758883838674,-500.0,0.00035499,7]
[387804642,1758883838683,-5000.0,0.000355,50]
[387804643,1758883838693,-978.0,0.00035819,2]
[387804644,1758883838703,-2159.0,0.00035819,2]
[387804645,1758883838711,-635.0,0.00035819,2]
[387804646,1758883838720,-250.0,0.00035819,2]
[387804647,1758883838729,-346.00853075,0.00036,2]
[387804648,1758883838739,-5000.0,0.000365,50]
[387804649,1758883838747,-586.8677381,0.00036794,30]
[387804650,1758883838757,-189.0127112,0.00036794,30]
[387804651,1758883838766,-346.00853075,0.00037,120]
[387804652,1758883838775,-5000.0,0.000375,80]
[387804653,1758883838785,-1220364.78881853,0.0003834,14]
[387804654,1758883838797,-70706.15499619,0.0003834,14]
[387804655,1758883838806,-16097.3148743,0.00038346,3]
[387804656,1758883838815,-362.45992862,0.00038346,3]
[387804657,1758883838824,-500.0,0.00038355,120]
[387804658,1758883838834,-480.0,0.00038356,30]
[387804659,1758883838843,-480.0,0.00038356,30]
[387804660,1758883838852,-520.0,0.00038356,3]
[387804661,1758883838861,-545.98098976,0.00038356,30]
[387804662,1758883838870,-480.0,0.00038356,30]
[387804663,1758883838879,-480.0,0.00038356,30]
[387804664,1758883838888,-480.0,0.00038356,30]
[387804665,1758883838897,-480.0,0.00038356,30]
[387804666,1758883838907,-480.0,0.00038356,30]
[387804667,1758883838916,-480.0,0.00038356,30]
[387804668,1758883838924,-480.0,0.00038356,30]
[387804669,1758883838933,-480.0,0.00038356,30]
[387804670,1758883838943,-480.0,0.00038356,30]
[387804671,1758883838952,-480.0,0.00038356,30]
[387804672,1758883838961,-480.0,0.00038356,30]
[387804673,1758883838970,-480.0,0.00038356,30]
[387804674,1758883838979,-480.0,0.00038356,30]
[387804675,1758883838988,-480.0,0.00038356,30]
[387804676,1758883838997,-727.78,0.00038356,30]
[387804677,1758883839006,-965.98,0.00038356,30]
[387804678,1758883839015,-515.77,0.00038356,30]
[387804679,1758883839024,-428.1796419,0.00038356,30]
[387804680,1758883839033,-480.0,0.00038356,30]
[387804681,1758883839042,-480.0,0.00038356,30]
[387804682,1758883839050,-480.0,0.00038356,30]
[387804683,1758883839059,-480.0,0.00038356,30]
[387804684,1758883839068,-480.0,0.00038356,30]
[387804685,1758883839078,-385.98215865,0.00038356,30]
[387804686,1758883839087,-480.0,0.00038356,30]
[387804687,1758883839095,-200.0,0.00038356,30]
[387804688,1758883839104,-1039.18,0.00038356,30]
[387804689,1758883839115,-480.0,0.00038356,30]
[387804690,1758883839125,-482.83880384,0.00038356,30]
[387804691,1758883839134,-480.0,0.00038356,30]
[387804692,1758883839143,-480.0,0.00038356,30]
[387804693,1758883839152,-480.0,0.00038356,30]
[387804694,1758883839161,-505.55234214,0.00038356,30]
[387804695,1758883839170,-480.0,0.00038356,30]
[387804696,1758883839179,-480.0,0.00038356,30]
[387804697,1758883839188,-599.91252107,0.00038356,30]
[387804698,1758883839197,-480.0,0.00038356,30]
[387804699,1758883839206,-605.40130858,0.00038356,30]
[387804700,1758883839215,-500.53,0.00038356,30]
[387804701,1758883839223,-480.0,0.00038356,30]
[387804702,1758883839232,-480.0,0.00038356,30]
[387804703,1758883839241,-480.0,0.00038356,30]
[387804704,1758883839251,-480.0,0.00038356,30]
[387804705,1758883839260,-503.60472979,0.00038356,14]
[387804706,1758883839269,-480.0,0.00038356,30]
[387804707,1758883839278,-480.0,0.00038356,30]
[387804708,1758883839287,-480.0,0.00038356,30]
[387804709,1758883839297,-1664.67,0.00038356,30]
[387804710,1758883839306,-480.0,0.00038356,30]
[387804711,1758883839316,-480.0,0.00038356,30]
[387804712,1758883839326,-480.0,0.00038356,30]
[387804713,1758883839335,-480.0,0.00038356,30]
[387804714,1758883839345,-480.0,0.00038356,30]
[387804715,1758883839354,-480.0,0.00038356,30]
[387804716,1758883839364,-480.0,0.00038356,30]
[387804717,1758883839373,-480.0,0.00038356,30]
[387804718,1758883839382,-3928.69,0.00038356,30]
[387804719,1758883839397,-833.6,0.00038356,30]
[387804720,1758883839407,-480.0,0.00038356,30]
[387804721,1758883839417,-480.0,0.00038356,30]
[387804722,1758883839427,-629.24,0.00038356,30]
[387804723,1758883839436,-480.0,0.00038356,30]
[387804724,1758883839445,-480.0,0.00038356,30]
[387804725,1758883839455,-923.84,0.00038356,30]
[387804726,1758883839464,-480.0,0.00038356,30]
[387804727,1758883839474,-427.06741731,0.00038356,30]
[387804728,1758883839484,-480.0,0.00038356,30]
[387804729,1758883839494,-480.0,0.00038356,30]
[387804730,1758883839504,-871.76,0.00038356,30]
[387804731,1758883839513,-480.0,0.00038356,30]
[387804732,1758883839523,-1340.5,0.00038356,30]
[387804733,1758883839532,-759.39,0.00038356,30]
[387804734,1758883839541,-2133.31,0.00038356,30]
[387804735,1758883839550,-1141.9,0.00038356,30]
[387804736,1758883839560,-480.0,0.00038356,30]
[387804737,1758883839569,-480.0,0.00038356,30]
[387804738,1758883839578,-1036.35,0.00038356,30]
[387804740,1758883839587,-480.0,0.00038356,30]
[387804741,1758883839596,-480.0,0.00038356,30]
[387804742,1758883839605,-480.0,0.00038356,30]
[387804743,1758883839615,-480.0,0.00038356,30]
[387804744,1758883839624,-480.0,0.00038356,30]
[387804746,1758883839633,-644.01,0.00038356,30]
[387804747,1758883839642,-480.0,0.00038356,30]
[387804748,1758883839652,-875.47,0.00038356,30]
[387804749,1758883839666,-593.12,0.00038356,30]
[387804750,1758883839675,-480.0,0.00038356,30]
[387804752,1758883839684,-480.0,0.00038356,30]
[387804753,1758883839693,-480.0,0.00038356,30]
[387804754,1758883839702,-726.63,0.00038356,30]
[387804755,1758883839711,-480.0,0.00038356,30]
[387804756,1758883839721,-809.42,0.00038356,30]
[387804757,1758883839734,-1130.18,0.00038356,30]
[387804758,1758883839746,-480.0,0.00038356,30]
[387804759,1758883839755,-480.0,0.00038356,30]
[387804760,1758883839764,-480.0,0.00038356,30]
[387804761,1758883839774,-1933.64,0.00038356,3]
[387804762,1758883839783,-480.0,0.00038356,30]
[387804763,1758883839792,-480.0,0.00038356,30]
[387804764,1758883839802,-480.0,0.00038356,30]
[387804765,1758883839811,-1261.12,0.00038356,30]
[387804766,1758883839821,-762.97,0.00038356,30]
[387804767,1758883839830,-930.78,0.00038356,30]
[387804768,1758883839839,-480.0,0.00038356,30]
[387804769,1758883839848,-480.0,0.00038356,30]
[387804770,1758883839858,-1596.17,0.00038356,30]
[387804771,1758883839867,-899.7,0.00038356,21]
[387804772,1758883839876,-480.0,0.00038356,30]
[387804773,1758883839885,-319.86645787,0.00038356,30]
[387804774,1758883839894,-2092.97910376,0.00038356,30]
[387804775,1758883839910,-1946.20089624,0.00038356,30]
[387804776,1758883840009,-1000.08,0.00038356,30]
[387804777,1758883840018,-480.0,0.00038356,30]
[387804778,1758883840028,-1169.09,0.00038356,30]
[387804779,1758883840037,-480.0,0.00038356,30]
[387804780,1758883840047,-1122.15,0.00038356,30]
[387804781,1758883840057,-539.7,0.00038356,30]
[387804782,1758883840066,-804.31,0.00038356,30]
[387804783,1758883840075,-238.23649263,0.00038356,30]
[387804784,1758883840085,-480.0,0.00038356,30]
[387804785,1758883840094,-508.91,0.00038356,30]
[387804786,1758883840103,-562.27,0.00038356,30]
[387804787,1758883840113,-1111.04,0.00038356,30]
[387804788,1758883840122,-512.67647743,0.00038356,30]
[387804789,1758883840132,-877.07,0.00038356,30]
[387804790,1758883840141,-480.0,0.00038356,30]
[387804791,1758883840152,-480.0,0.00038356,30]
[387804792,1758883840162,-480.0,0.00038356,30]
[387804793,1758883840172,-480.0,0.00038356,30]
[387804794,1758883840181,-480.0,0.00038356,30]
[387804795,1758883840191,-846.43,0.00038356,30]
[387804796,1758883840200,-1685.22,0.00038356,30]
[387804797,1758883840209,-4054.56,0.00038356,30]
[387804798,1758883840219,-1032.28,0.00038356,30]
[387804799,1758883840228,-3204.22,0.00038356,30]
[387804800,1758883840237,-480.0,0.00038356,30]
[387804801,1758883840246,-160.0,0.00038356,30]
[387804802,1758883840255,-532.1,0.00038356,30]
[387804803,1758883840265,-644.11,0.00038356,30]
[387804804,1758883840274,-1146.72,0.00038356,30]
[387804805,1758883840283,-480.0,0.00038356,30]
[387804806,1758883840292,-500.0,0.00038356,30]
[387804807,1758883840302,-379.01229408,0.00038356,30]
[387804808,1758883840311,-1287.720656,0.00038356,2]
[387804809,1758883840321,-334.24756958,0.00038373,5]
[387804810,1758883840330,-281.69742881,0.00038373,5]
[387804811,1758883840340,-500.0,0.00038373,5]
[387804812,1758883840349,-500.0,0.00038373,5]
[387804813,1758883840360,-500.0,0.00038373,5]
[387804814,1758883840369,-151.0,0.00038444,3]
[387804815,1758883840379,-151.0,0.00038444,3]
[387804816,1758883840388,-151.0,0.00038444,3]
[387804817,1758883840397,-5000.0,0.000385,80]
[387804818,1758883840409,-191.47052524,0.0003853,2]
[387804819,1758883840418,-9248.0517114,0.00038573,2]
[387804820,1758883840427,-16097.3148743,0.0003862,3]
[387804821,1758883840437,-362.45992862,0.0003862,3]
[387804822,1758883840446,-480.0,0.0003863,30]
[387804823,1758883840455,-480.0,0.0003863,30]
[387804824,1758883840464,-480.0,0.0003863,30]
[387804825,1758883840474,-480.0,0.0003863,30]
[387804826,1758883840482,-480.0,0.0003863,30]
[387804827,1758883840491,-480.0,0.0003863,30]
[387804828,1758883840500,-480.0,0.0003863,30]
[387804829,1758883840510,-480.0,0.0003863,30]
[387804830,1758883840519,-480.0,0.0003863,30]
[387804831,1758883840528,-505.9098574,0.0003863,30]
[387804832,1758883840538,-480.0,0.0003863,30]
[387804833,1758883840547,-153.55389025,0.0003863,30]
[387804834,1758883840556,-727.78,0.0003863,30]
[387804835,1758883840565,-965.98,0.0003863,30]
[387804836,1758883840574,-515.77,0.0003863,30]
[387804837,1758883840584,-480.0,0.0003863,30]
[387804838,1758883840592,-480.0,0.0003863,30]
[387804839,1758883840601,-582.51120043,0.0003863,30]
[387804840,1758883840611,-480.0,0.0003863,30]
[387804841,1758883840620,-480.0,0.0003863,30]
[387804842,1758883840629,-293.71008046,0.0003863,30]
[387804843,1758883840638,-1039.18,0.0003863,30]
[387804844,1758883840647,-480.0,0.0003863,30]
[387804845,1758883840663,-491.37079064,0.0003863,30]
[387804846,1758883840672,-480.0,0.0003863,30]
[387804847,1758883840681,-480.0,0.0003863,30]
[387804848,1758883840691,-480.0,0.0003863,30]
[387804849,1758883840701,-480.0,0.0003863,30]
[387804850,1758883840710,-500.53,0.0003863,30]
[387804851,1758883840719,-480.0,0.0003863,30]
[387804852,1758883840728,-480.0,0.0003863,30]
[387804853,1758883840738,-480.0,0.0003863,30]
[387804854,1758883840748,-480.0,0.0003863,30]
[387804855,1758883840757,-480.0,0.0003863,30]
[387804856,1758883840766,-480.0,0.0003863,30]
[387804857,1758883840775,-480.0,0.0003863,30]
[387804858,1758883840784,-1664.67,0.0003863,30]
[387804859,1758883840793,-480.0,0.0003863,30]
[387804860,1758883840802,-480.0,0.0003863,30]
[387804861,1758883840811,-480.0,0.0003863,30]
[387804862,1758883840820,-480.0,0.0003863,30]
[387804863,1758883840830,-166.38970009,0.0003863,30]
[387804864,1758883840842,-313.61029991,0.0003863,30]
[387804865,1758883840851,-485.32328909,0.0003863,30]
[387804866,1758883840860,-552.74,0.0003863,30]
[387804867,1758883840870,-3928.69,0.0003863,30]
[387804868,1758883840880,-833.6,0.0003863,30]
[387804869,1758883840889,-480.0,0.0003863,30]
[387804870,1758883840899,-480.0,0.0003863,30]
[387804871,1758883840909,-629.24,0.0003863,30]
[387804872,1758883840919,-480.0,0.0003863,30]
[387804873,1758883840928,-480.0,0.0003863,30]
[387804874,1758883840937,-923.84,0.0003863,30]
[387804875,1758883840947,-429.56346176,0.0003863,30]
[387804876,1758883840959,-480.0,0.0003863,30]
[387804877,1758883840974,-480.0,0.0003863,30]
[387804878,1758883840984,-871.76,0.0003863,30]
[387804879,1758883840993,-480.0,0.0003863,30]
[387804880,1758883841002,-1340.5,0.0003863,30]
[387804881,1758883841012,-759.39,0.0003863,30]
[387804882,1758883841022,-2133.31,0.0003863,30]
[387804883,1758883841031,-1122.30222997,0.0003863,30]
[387804884,1758883841042,-19.59777003,0.0003863,30]
[387804885,1758883841051,-480.0,0.0003863,30]
[387804886,1758883841061,-480.0,0.0003863,30]
[387804887,1758883841070,-1036.35,0.0003863,30]
[387804888,1758883841079,-480.0,0.0003863,30]
[387804889,1758883841088,-480.0,0.0003863,30]
[387804890,1758883841097,-480.0,0.0003863,30]
[387804891,1758883841106,-480.0,0.0003863,30]
[387804892,1758883841116,-480.0,0.0003863,30]
[387804893,1758883841125,-644.01,0.0003863,30]
[387804894,1758883841134,-480.0,0.0003863,30]
[387804895,1758883841143,-875.47,0.0003863,30]
[387804896,1758883841152,-593.12,0.0003863,30]
[387804897,1758883841161,-480.0,0.0003863,30]
[387804898,1758883841171,-480.0,0.0003863,30]
[387804899,1758883841180,-480.0,0.0003863,30]
[387804900,1758883841189,-726.63,0.0003863,30]
[387804901,1758883841199,-480.0,0.0003863,30]
[387804902,1758883841208,-809.42,0.0003863,30]
[387804903,1758883841217,-1130.18,0.0003863,30]
[387804904,1758883841227,-447.83851083,0.0003863,30]
[387804905,1758883841238,-32.16148917,0.0003863,30]
[387804906,1758883841247,-480.0,0.0003863,30]
[387804907,1758883841256,-480.0,0.0003863,30]
[387804908,1758883841265,-1933.64,0.0003863,3]
[387804909,1758883841275,-480.0,0.0003863,30]
[387804910,1758883841284,-480.0,0.0003863,30]
[387804911,1758883841294,-480.0,0.0003863,30]
[387804912,1758883841303,-1261.12,0.0003863,30]
[387804913,1758883841313,-762.97,0.0003863,30]
[387804914,1758883841322,-930.78,0.0003863,30]
[387804915,1758883841331,-480.0,0.0003863,30]
[387804916,1758883841341,-480.0,0.0003863,30]
[387804917,1758883841350,-1596.17,0.0003863,30]
[387804918,1758883841359,-899.7,0.0003863,21]
[387804919,1758883841369,-480.0,0.0003863,30]
[387804920,1758883841378,-4039.18,0.0003863,30]
[387804921,1758883841388,-1000.08,0.0003863,30]
[387804922,1758883841398,-480.0,0.0003863,30]
[387804923,1758883841408,-1169.09,0.0003863,30]
[387804924,1758883841418,-480.0,0.0003863,30]
[387804925,1758883841427,-1122.15,0.0003863,30]
[387804926,1758883841437,-539.7,0.0003863,30]
[387804927,1758883841446,-804.31,0.0003863,30]
[387804928,1758883841456,-480.0,0.0003863,30]
[387804929,1758883841465,-508.91,0.0003863,30]
[387804930,1758883841475,-562.27,0.0003863,30]
[387804931,1758883841483,-1111.04,0.0003863,30]
[387804932,1758883841492,-877.07,0.0003863,30]
[387804933,1758883841501,-480.0,0.0003863,30]
[387804934,1758883841511,-366.93682105,0.0003863,30]
[387804935,1758883841520,-480.0,0.0003863,30]
[387804936,1758883841529,-480.0,0.0003863,30]
[387804938,1758883841538,-487.05629837,0.0003863,30]
[387804940,1758883841547,-846.43,0.0003863,30]
[387804942,1758883841557,-1685.22,0.0003863,30]
[387804944,1758883841566,-4054.56,0.0003863,30]
[387804946,1758883841575,-1032.28,0.0003863,30]
[387804948,1758883841583,-3204.22,0.0003863,30]
[387804950,1758883841592,-532.1,0.0003863,30]
[387804952,1758883841601,-644.11,0.0003863,30]
[387804954,1758883841611,-1146.72,0.0003863,30]
[387804956,1758883841620,-480.0,0.0003863,30]
[387804958,1758883841629,-500.0,0.0003863,30]
[387804959,1758883841638,-500.66450359,0.00038673,5]
[387804961,1758883841647,-500.0,0.00038673,5]
[387804963,1758883841661,-501.06934055,0.00038673,5]
[387804965,1758883841670,-501.28274125,0.00038673,5]
[387804967,1758883841679,-500.0,0.00038673,5]
[387804969,1758883841688,-500.56528327,0.00038673,5]
[387804971,1758883841697,-500.0,0.00038673,5]
[387804973,1758883841707,-500.0,0.00038673,5]
[387804975,1758883841716,-500.0,0.00038673,5]
[387804977,1758883841726,-500.85552493,0.00038673,5]
[387804979,1758883841735,-500.0,0.00038673,5]
[387804981,1758883841744,-500.0,0.00038673,5]
[387804983,1758883841754,-500.0,0.00038673,5]
[387804985,1758883841765,-500.0,0.00038673,5]
[387804987,1758883841774,-502.49055282,0.00038673,5]
[387804989,1758883841783,-500.0,0.00038673,5]
[387804991,1758883841792,-500.0,0.00038673,5]
[387804993,1758883841802,-500.0,0.00038673,5]
[387804995,1758883841811,-500.0,0.00038673,5]
[387804997,1758883841820,-500.0,0.00038673,5]
[387804999,1758883841829,-500.0,0.00038673,5]
[387805000,1758883841838,-500.0,0.00038673,2]
[387805001,1758883841848,-500.0,0.00038673,5]
[387805002,1758883841858,-500.0,0.00038673,5]
[387805003,1758883841867,-500.0,0.00038673,5]
[387805004,1758883841877,-500.85707087,0.00038673,5]
[387805005,1758883841886,-500.0,0.00038673,5]
[387805007,1758883841895,-500.0,0.00038673,5]
[387805009,1758883841905,-500.0,0.00038673,5]
[387805011,1758883841915,-500.0,0.00038673,5]
[387805013,1758883841924,-500.0,0.00038673,5]
[387805015,1758883841933,-500.0,0.00038673,5]
[387805017,1758883841942,-175.04286402,0.00038673,5]
[387805019,1758883841952,-501.18298771,0.00038673,5]
[387805020,1758883841961,-160.0,0.00038696,2]
[387805022,1758883841971,-151.0,0.00038718,3]
[387805024,1758883841980,-151.0,0.00038718,3]
[387805030,1758883842072,-7382.67583263,0.00038894,3]
[387805031,1758883842154,-5088.73568278,0.00038894,3]
[387805032,1758883842166,-3625.90335889,0.00038894,3]
[387805033,1758883842176,-362.45992862,0.00038894,3]
[387805034,1758883842186,-250.0,0.00038903,30]
[387805035,1758883842197,-200.0,0.00038903,30]
[387805036,1758883842207,-350.0,0.00038903,30]
[387805037,1758883842216,-500.0,0.00038903,30]
[387805038,1758883842226,-250.0,0.00038903,30]
[387805040,1758883842236,-350.0,0.00038903,30]
[387805041,1758883842245,-200.0,0.00038903,30]
[387805042,1758883842254,-500.0,0.00038903,30]
[387805044,1758883842264,-250.0,0.00038903,30]
[387805046,1758883842273,-200.0,0.00038903,30]
[387805049,1758883842283,-500.0,0.00038903,30]
[387805051,1758883842293,-350.0,0.00038903,30]
[387805053,1758883842302,-200.0,0.00038903,30]
[387805055,1758883842312,-500.0,0.00038903,30]
[387805057,1758883842321,-151.0,0.00038903,30]
[387805059,1758883842330,-350.0,0.00038903,30]
[387805060,1758883842339,-200.0,0.00038903,30]
[387805062,1758883842348,-500.0,0.00038903,30]
[387805064,1758883842358,-151.0,0.00038903,30]
[387805067,1758883842367,-350.0,0.00038903,30]
[387805068,1758883842376,-200.0,0.00038903,30]
[387805070,1758883842386,-500.0,0.00038903,30]
[387805072,1758883842395,-350.0,0.00038903,30]
[387805075,1758883842404,-151.0,0.00038903,30]
[387805077,1758883842414,-200.0,0.00038903,30]
[387805078,1758883842423,-500.0,0.00038903,30]
[387805080,1758883842433,-151.0,0.00038903,30]
[387805082,1758883842442,-200.0,0.00038903,30]
[387805084,1758883842451,-350.0,0.00038903,30]
[387805086,1758883842461,-500.0,0.00038903,30]
[387805088,1758883842471,-151.0,0.00038903,30]
[387805090,1758883842480,-500.0,0.00038903,30]
[387805092,1758883842490,-200.0,0.00038903,30]